Workbook

Sheet Лист1
A1: Школа | C1: МБОУ " Абрикосовская школа" | F1: Утвердил: | G1: должность | H1: Ио директора школы
A2: Типовое примерное меню приготавливаемых блюд | G2: фамилия | H2: Тимашкова Е. А.
A3: Возрастная категория | E3: 7-11 лет | G3: дата | H3: 13 | I3: 1 | J3: 2025
H4: день | I4: месяц | J4: год
A5: Неделя | B5: День недели | C5: Прием пищи | D5: Раздел меню | E5: Блюда | F5: Вес блюда, г | G5: Белки | H5: Жиры | I5: Углеводы | J5: Калорийность | K5: № рецептуры | L5: Цена
A6: 1 | B6: 1 | C6: Завтрак | D6: гор.блюдо | E6: Каша рисовая молочная вязкая | F6: 210 | G6: 6 | H6: 10.84 | I6: 42.95 | J6: 294 | K6: 174
D7: хол.блюдо | E7: Омлет натуральный | F7: 58 | G7: 5.39 | H7: 9.6 | I7: 1.02 | J7: 112 | K7: 210
D8: гор.напиток | E8: Чай с лимоном | F8: 200 | G8: 0.13 | H8: 0.02 | I8: 15.2 | J8: 62 | K8: 377
D9: хлеб | E9: Бутерброд с сыром | F9: 50 | G9: 5.8 | H9: 8.3 | I9: 14.83 | J9: 157 | K9: 3
D10: фрукты | E10: Яблоко свежее | F10: 100 | G10: 0.4 | H10: 0.4 | I10: 9.8 | J10: 47 | K10: 338
D13: итого | F13: =SUM(F6:F12) -> 618 | G13: =SUM(G6:G12) -> 17.72 | H13: =SUM(H6:H12) -> 29.16 | I13: =SUM(I6:I12) -> 83.8 | J13: =SUM(J6:J12) -> 672 | L13: 77
A14: =A6 -> 1 | B14: =B6 -> 1 | C14: Обед | D14: закуска
D15: 1 блюдо
D16: 2 блюдо
D17: гарнир
D18: напиток
D19: хлеб бел.
D20: хлеб черн.
D23: итого | F23: =SUM(F14:F22) -> 0 | G23: =SUM(G14:G22) -> 0 | H23: =SUM(H14:H22) -> 0 | I23: =SUM(I14:I22) -> 0 | J23: =SUM(J14:J22) -> 0 | L23: =SUM(L14:L22) -> 0
A24: =A6 -> 1 | B24: =B6 -> 1 | C24: Итого за день: | F24: =F13+F23 -> 618 | G24: =G13+G23 -> 17.72 | H24: =H13+H23 -> 29.16 | I24: =I13+I23 -> 83.8 | J24: =J13+J23 -> 672 | L24: 77
A25: 1 | B25: 2 | C25: Завтрак | D25: гор.блюдо | E25: Плов из курицы | F25: 180 | G25: 15.2 | H25: 8.88 | I25: 32.8 | J25: 272.4 | K25: 291
D27: гор.напиток | E27: Кофейный напиток с молоком | F27: 200 | G27: 3.16 | H27: 2.67 | I27: 15.94 | J27: 101.6 | K27: 379
D28: хлеб | E28: Хлеб пшеничный | F28: 30 | G28: 2.37 | H28: 0.3 | I28: 14.49 | J28: 70.14 | K28: пр
D29: фрукты | E29: Яблоко свежее | F29: 100 | G29: 0.4 | H29: 0.4 | I29: 9.8 | J29: 47 | K29: 338
D30: хол.блюдо | E30: Салат из белокочанной капусты | F30: 60 | G30: 0.78 | H30: 1.94 | I30: 3.87 | J30: 36.24 | K30: 45
D32: итого | F32: =SUM(F25:F31) -> 570 | G32: =SUM(G25:G31) -> 21.91 | H32: =SUM(H25:H31) -> 14.19 | I32: =SUM(I25:I31) -> 76.9 | J32: =SUM(J25:J31) -> 527.38 | L32: 77
A33: =A25 -> 1 | B33: =B25 -> 2 | C33: Обед | D33: закуска
D34: 1 блюдо
D35: 2 блюдо
D36: гарнир
D37: напиток
D38: хлеб бел.
D39: хлеб черн.
D42: итого | F42: =SUM(F33:F41) -> 0 | G42: =SUM(G33:G41) -> 0 | H42: =SUM(H33:H41) -> 0 | I42: =SUM(I33:I41) -> 0 | J42: =SUM(J33:J41) -> 0 | L42: =SUM(L33:L41) -> 0
A43: =A25 -> 1 | B43: =B25 -> 2 | C43: Итого за день: | F43: =F32+F42 -> 570 | G43: =G32+G42 -> 21.91 | H43: =H32+H42 -> 14.19 | I43: =I32+I42 -> 76.9 | J43: =J32+J42 -> 527.38 | L43: 77
A44: 1 | B44: 3 | C44: Завтрак | D44: гор.блюдо | E44: Запеканка из творога | F44: 150 | G44: 21.92 | H44: 16.58 | I44: 42 | J44: 405 | K44: 223
D46: гор.напиток | E46: Чай с лимоном | F46: 200 | G46: 0.13 | H46: 0.02 | I46: 15.2 | J46: 62 | K46: 377
D47: хлеб
D48: фрукты | E48: Яблоко свежее | F48: 100 | G48: 0.4 | H48: 0.4 | I48: 9.8 | J48: 47 | K48: 338
D49: сладкое | E49: Йогурт | F49: 100 | G49: 4.1 | H49: 1.5 | I49: 5.9 | J49: 53.5
D51: итого | F51: =SUM(F44:F50) -> 550 | G51: =SUM(G44:G50) -> 26.55 | H51: =SUM(H44:H50) -> 18.5 | I51: =SUM(I44:I50) -> 72.9 | J51: =SUM(J44:J50) -> 567.5 | L51: 77
A52: =A44 -> 1 | B52: =B44 -> 3 | C52: Обед | D52: закуска
D53: 1 блюдо
D54: 2 блюдо
D55: гарнир
D56: напиток
D57: хлеб бел.
D58: хлеб черн.
D61: итого | F61: =SUM(F52:F60) -> 0 | G61: =SUM(G52:G60) -> 0 | H61: =SUM(H52:H60) -> 0 | I61: =SUM(I52:I60) -> 0 | J61: =SUM(J52:J60) -> 0 | L61: =SUM(L52:L60) -> 0
A62: =A44 -> 1 | B62: =B44 -> 3 | C62: Итого за день: | F62: =F51+F61 -> 550 | G62: =G51+G61 -> 26.55 | H62: =H51+H61 -> 18.5 | I62: =I51+I61 -> 72.9 | J62: =J51+J61 -> 567.5 | L62: 77
A63: 1 | B63: 4 | C63: Завтрак | D63: гор.блюдо | E63: Фрикадельки из птицы или кролика | F63: 150 | G63: 18.68 | H63: 27.84 | I63: 11.04 | J63: 370.9 | K63: 297
D64: гарнир | E64: Макаронные изделия отварные | F64: 150 | G64: 6.5 | H64: 5.96 | I64: 40.98 | J64: 241.2 | K64: 202
D65: гор.напиток | E65: Компот из сухофруктов | F65: 200 | G65: 1.16 | H65: 0.3 | I65: 47.26 | J65: 196.38 | K65: 349
D66: хлеб | E66: Хлеб пшеничный | F66: 30 | G66: 2.37 | H66: 0.3 | I66: 14.49 | J66: 70.14 | K66: пр
D67: фрукты
D68: хол.блюдо | E68: Салат из белокочанной капусты | F68: 60 | G68: 0.78 | H68: 1.94 | I68: 3.87 | J68: 36.24 | K68: 45
D70: итого | F70: =SUM(F63:F69) -> 590 | G70: =SUM(G63:G69) -> 29.49 | H70: =SUM(H63:H69) -> 36.34 | I70: =SUM(I63:I69) -> 117.64 | J70: =SUM(J63:J69) -> 914.86 | L70: 77
A71: =A63 -> 1 | B71: =B63 -> 4 | C71: Обед | D71: закуска
D72: 1 блюдо
D73: 2 блюдо
D74: гарнир
D75: напиток
D76: хлеб бел.
D77: хлеб черн.
D80: итого | F80: =SUM(F71:F79) -> 0 | G80: =SUM(G71:G79) -> 0 | H80: =SUM(H71:H79) -> 0 | I80: =SUM(I71:I79) -> 0 | J80: =SUM(J71:J79) -> 0 | L80: =SUM(L71:L79) -> 0
A81: =A63 -> 1 | B81: =B63 -> 4 | C81: Итого за день: | F81: =F70+F80 -> 590 | G81: =G70+G80 -> 29.49 | H81: =H70+H80 -> 36.34 | I81: =I70+I80 -> 117.64 | J81: =J70+J80 -> 914.86 | L81: 77
A82: 1 | B82: 5 | C82: Завтрак | D82: гор.блюдо | E82: Гуляш из куриного филе | F82: 155 | G82: 34.1 | H82: 14.24 | I82: 2.07 | J82: 277.89 | K82: 322
D83: гарнир | E83: Пюре картофельное | F83: 150 | G83: 3.06 | H83: 4.8 | I83: 20.43 | J83: 137.25 | K83: 312
D84: гор.напиток | E84: Чай с лимоном | F84: 200 | G84: 0.13 | H84: 0.02 | I84: 15.2 | J84: 62 | K84: 377
D85: хлеб | E85: Хлеб пшеничный | F85: 30 | G85: 2.37 | H85: 0.3 | I85: 14.49 | J85: 70.14 | K85: пр
D86: фрукты
D87: овощи | E87: Овощи по сезону | F87: 60 | G87: 0.42 | H87: 0.06 | I87: 1.14 | J87: 7.2 | K87: 71
D89: итого | F89: =SUM(F82:F88) -> 595 | G89: =SUM(G82:G88) -> 40.08 | H89: =SUM(H82:H88) -> 19.42 | I89: =SUM(I82:I88) -> 53.33 | J89: =SUM(J82:J88) -> 554.48 | L89: 77
A90: =A82 -> 1 | B90: =B82 -> 5 | C90: Обед | D90: закуска
D91: 1 блюдо
D92: 2 блюдо
D93: гарнир
D94: напиток
D95: хлеб бел.
D96: хлеб черн.
D99: итого | F99: =SUM(F90:F98) -> 0 | G99: =SUM(G90:G98) -> 0 | H99: =SUM(H90:H98) -> 0 | I99: =SUM(I90:I98) -> 0 | J99: =SUM(J90:J98) -> 0 | L99: =SUM(L90:L98) -> 0
A100: =A82 -> 1 | B100: =B82 -> 5 | C100: Итого за день: | F100: =F89+F99 -> 595 | G100: =G89+G99 -> 40.08 | H100: =H89+H99 -> 19.42 | I100: =I89+I99 -> 53.33 | J100: =J89+J99 -> 554.48 | L100: 77
A101: 2 | B101: 1 | C101: Завтрак | D101: гор.блюдо | E101: Каша овсяная молочная вязкая | F101: 210 | G101: 8.31 | H101: 13.12 | I101: 37.62 | J101: 303 | K101: 173
D102: хол.блюдо | E102: Омлет натуральный | F102: 58 | G102: 5.39 | H102: 9.6 | I102: 1.02 | J102: 112 | K102: 210
D103: гор.напиток | E103: Чай с лимоном | F103: 200 | G103: 0.13 | H103: 0.02 | I103: 15.2 | J103: 62 | K103: 377
D104: хлеб | E104: Бутерброд с сыром | F104: 50 | G104: 5.8 | H104: 8.3 | I104: 14.83 | J104: 157 | K104: 3
D105: фрукты | E105: Яблоко свежее | F105: 100 | G105: 0.4 | H105: 0.4 | I105: 9.8 | J105: 47 | K105: 338
D108: итого | F108: =SUM(F101:F107) -> 618 | G108: =SUM(G101:G107) -> 20.03 | H108: =SUM(H101:H107) -> 31.44 | I108: =SUM(I101:I107) -> 78.47 | J108: =SUM(J101:J107) -> 681 | L108: 77
A109: =A101 -> 2 | B109: =B101 -> 1 | C109: Обед | D109: закуска
D110: 1 блюдо
D111: 2 блюдо
D112: гарнир
D113: напиток
D114: хлеб бел.
D115: хлеб черн.
D118: итого | F118: =SUM(F109:F117) -> 0 | G118: =SUM(G109:G117) -> 0 | H118: =SUM(H109:H117) -> 0 | I118: =SUM(I109:I117) -> 0 | J118: =SUM(J109:J117) -> 0 | L118: =SUM(L109:L117) -> 0
A119: =A101 -> 2 | B119: =B101 -> 1 | C119: Итого за день: | F119: =F108+F118 -> 618 | G119: =G108+G118 -> 20.03 | H119: =H108+H118 -> 31.44 | I119: =I108+I118 -> 78.47 | J119: =J108+J118 -> 681 | L119: 77
A120: 2 | B120: 2 | C120: Завтрак | D120: гор.блюдо | E120: Макаронные изделия отварные с сыром | F120: 177.5 | G120: 12.01 | H120: 14.12 | I120: 30.27 | J120: 296.78 | K120: 204
D122: гор.напиток | E122: Чай с лимоном | F122: 200 | G122: 0.13 | H122: 0.02 | I122: 15.2 | J122: 62 | K122: 377
D123: хлеб | E123: Хлеб пшеничный | F123: 30 | G123: 2.37 | H123: 0.3 | I123: 14.49 | J123: 70.14 | K123: пр
D124: фрукты | E124: Яблоко свежее | F124: 100 | G124: 0.4 | H124: 0.4 | I124: 9.8 | J124: 47 | K124: 338
D125: сладкое | E125: Йогурт | F125: 100 | G125: 4.1 | H125: 1.5 | I125: 5.9 | J125: 53.5 | K125: пр
D127: итого | F127: =SUM(F120:F126) -> 607.5 | G127: =SUM(G120:G126) -> 19.01 | H127: =SUM(H120:H126) -> 16.34 | I127: =SUM(I120:I126) -> 75.66 | J127: =SUM(J120:J126) -> 529.42 | L127: 77
A128: =A120 -> 2 | B128: =B120 -> 2 | C128: Обед | D128: закуска
D129: 1 блюдо
D130: 2 блюдо
D131: гарнир
D132: напиток
D133: хлеб бел.
D134: хлеб черн.
D137: итого | F137: =SUM(F128:F136) -> 0 | G137: =SUM(G128:G136) -> 0 | H137: =SUM(H128:H136) -> 0 | I137: =SUM(I128:I136) -> 0 | J137: =SUM(J128:J136) -> 0 | L137: =SUM(L128:L136) -> 0
A138: =A120 -> 2 | B138: =B120 -> 2 | C138: Итого за день: | F138: =F127+F137 -> 607.5 | G138: =G127+G137 -> 19.01 | H138: =H127+H137 -> 16.34 | I138: =I127+I137 -> 75.66 | J138: =J127+J137 -> 529.42 | L138: 77
A139: 2 | B139: 3 | C139: Завтрак | D139: гор.блюдо | E139: Фрикадельки рыбные с соусом томатным | F139: 150 | G139: 13.2 | H139: 10.99 | I139: 13.23 | J139: 194.47 | K139: 86\348
D140: гарнир | E140: Пюре картофельное | F140: 200 | G140: 4.08 | H140: 6.4 | I140: 27.25 | J140: 183 | K140: 312
D141: гор.напиток | E141: Чай с лимоном | F141: 200 | G141: 0.13 | H141: 0.02 | I141: 15.2 | J141: 62 | K141: 377
D142: хлеб | E142: Хлеб пшеничный | F142: 30 | G142: 2.37 | H142: 0.3 | I142: 14.49 | J142: 70.14 | K142: пр
D143: фрукты | E143: Яблоко свежее | F143: 100 | G143: 0.4 | H143: 0.4 | I143: 9.8 | J143: 47 | K143: 338
E144: Овощи по сезону | F144: 60 | G144: 0.42 | H144: 0.06 | I144: 1.14 | J144: 7.2 | K144: 71
D146: итого | F146: =SUM(F139:F145) -> 740 | G146: =SUM(G139:G145) -> 20.6 | H146: =SUM(H139:H145) -> 18.17 | I146: =SUM(I139:I145) -> 81.11 | J146: =SUM(J139:J145) -> 563.81 | L146: 77
A147: =A139 -> 2 | B147: =B139 -> 3 | C147: Обед | D147: закуска
D148: 1 блюдо
D149: 2 блюдо
D150: гарнир
D151: напиток
D152: хлеб бел.
D153: хлеб черн.
D156: итого | F156: =SUM(F147:F155) -> 0 | G156: =SUM(G147:G155) -> 0 | H156: =SUM(H147:H155) -> 0 | I156: =SUM(I147:I155) -> 0 | J156: =SUM(J147:J155) -> 0 | L156: =SUM(L147:L155) -> 0
A157: =A139 -> 2 | B157: =B139 -> 3 | C157: Итого за день: | F157: =F146+F156 -> 740 | G157: =G146+G156 -> 20.6 | H157: =H146+H156 -> 18.17 | I157: =I146+I156 -> 81.11 | J157: =J146+J156 -> 563.81 | L157: 77
A158: 2 | B158: 4 | C158: Завтрак | D158: гор.блюдо | E158: Котлета рубленая из птицы | F158: 160 | G158: 23.12 | H158: 36.3 | I158: 24.11 | J158: 514.9 | K158: 106
D159: гарнир | E159: Каша гречневая рассыпчатая | F159: 150 | G159: 9.93 | H159: 5.98 | I159: 44.68 | J159: 268.31 | K159: 165
D160: гор.напиток | E160: Сок фруктовый | F160: 200 | G160: 1 | H160: 0 | I160: 20.2 | J160: 84.8 | K160: 389
D161: хлеб | E161: Хлеб пшеничный | F161: 30 | G161: 2.37 | H161: 0.3 | I161: 14.49 | J161: 70.14 | K161: пр
D162: фрукты
D163: хол.блюдо | E163: Икра кабачковая | F163: 60 | G163: 1.63 | H163: 4.31 | I163: 8.72 | J163: 80.28 | K163: 73
D165: итого | F165: =SUM(F158:F164) -> 600 | G165: =SUM(G158:G164) -> 38.05 | H165: =SUM(H158:H164) -> 46.89 | I165: =SUM(I158:I164) -> 112.2 | J165: =SUM(J158:J164) -> 1018.43 | L165: 77
A166: =A158 -> 2 | B166: =B158 -> 4 | C166: Обед | D166: закуска
D167: 1 блюдо
D168: 2 блюдо
D169: гарнир
D170: напиток
D171: хлеб бел.
D172: хлеб черн.
D175: итого | F175: =SUM(F166:F174) -> 0 | G175: =SUM(G166:G174) -> 0 | H175: =SUM(H166:H174) -> 0 | I175: =SUM(I166:I174) -> 0 | J175: =SUM(J166:J174) -> 0 | L175: =SUM(L166:L174) -> 0
A176: =A158 -> 2 | B176: =B158 -> 4 | C176: Итого за день: | F176: =F165+F175 -> 600 | G176: =G165+G175 -> 38.05 | H176: =H165+H175 -> 46.89 | I176: =I165+I175 -> 112.2 | J176: =J165+J175 -> 1018.43 | L176: 77
A177: 2 | B177: 5 | C177: Завтрак | D177: гор.блюдо | E177: Запеканка творожная | F177: 150 | G177: 21.92 | H177: 16.58 | I177: 42 | J177: 405 | K177: 223
D179: гор.напиток | E179: Чай с лимоном | F179: 200 | G179: 0.13 | H179: 0.02 | I179: 15.2 | J179: 62 | K179: 377
D180: хлеб
D181: фрукты | E181: Яблоко свежее | F181: 100 | G181: 0.4 | H181: 0.4 | I181: 9.8 | J181: 47 | K181: 338
D182: сладкое | E182: Йогурт | F182: 100 | G182: 4.1 | H182: 1.5 | I182: 5.9 | J182: 53.5 | K182: пр
D184: итого | F184: =SUM(F177:F183) -> 550 | G184: =SUM(G177:G183) -> 26.55 | H184: =SUM(H177:H183) -> 18.5 | I184: =SUM(I177:I183) -> 72.9 | J184: =SUM(J177:J183) -> 567.5 | L184: 77
A185: =A177 -> 2 | B185: =B177 -> 5 | C185: Обед | D185: закуска
D186: 1 блюдо
D187: 2 блюдо
D188: гарнир
D189: напиток
D190: хлеб бел.
D191: хлеб черн.
D194: итого | F194: =SUM(F185:F193) -> 0 | G194: =SUM(G185:G193) -> 0 | H194: =SUM(H185:H193) -> 0 | I194: =SUM(I185:I193) -> 0 | J194: =SUM(J185:J193) -> 0 | L194: =SUM(L185:L193) -> 0
A195: =A177 -> 2 | B195: =B177 -> 5 | C195: Итого за день: | F195: =F184+F194 -> 550 | G195: =G184+G194 -> 26.55 | H195: =H184+H194 -> 18.5 | I195: =I184+I194 -> 72.9 | J195: =J184+J194 -> 567.5 | L195: 77
C196: Среднее значение за период: | F196: =(F24+F43+F62+F81+F100+F119+F138+F157+F176+F195)/(IF(F24=0,0,1)+IF(F43=0,0,1)+IF(F62=0,0,1)+IF(F81=0,0,1)+IF(F100=0,0,1)+IF(F119=0,0,1)+IF(F138=0,0,1)+IF(F157=0,0,1)+IF(F176=0,0,1)+IF(F195=0,0,1)) -> 603.85 | G196: =(G24+G43+G62+G81+G100+G119+G138+G157+G176+G195)/(IF(G24=0,0,1)+IF(G43=0,0,1)+IF(G62=0,0,1)+IF(G81=0,0,1)+IF(G100=0,0,1)+IF(G119=0,0,1)+IF(G138=0,0,1)+IF(G157=0,0,1)+IF(G176=0,0,1)+IF(G195=0,0,1)) -> 25.999 | H196: =(H24+H43+H62+H81+H100+H119+H138+H157+H176+H195)/(IF(H24=0,0,1)+IF(H43=0,0,1)+IF(H62=0,0,1)+IF(H81=0,0,1)+IF(H100=0,0,1)+IF(H119=0,0,1)+IF(H138=0,0,1)+IF(H157=0,0,1)+IF(H176=0,0,1)+IF(H195=0,0,1)) -> 24.895 | I196: =(I24+I43+I62+I81+I100+I119+I138+I157+I176+I195)/(IF(I24=0,0,1)+IF(I43=0,0,1)+IF(I62=0,0,1)+IF(I81=0,0,1)+IF(I100=0,0,1)+IF(I119=0,0,1)+IF(I138=0,0,1)+IF(I157=0,0,1)+IF(I176=0,0,1)+IF(I195=0,0,1)) -> 82.491 | J196: =(J24+J43+J62+J81+J100+J119+J138+J157+J176+J195)/(IF(J24=0,0,1)+IF(J43=0,0,1)+IF(J62=0,0,1)+IF(J81=0,0,1)+IF(J100=0,0,1)+IF(J119=0,0,1)+IF(J138=0,0,1)+IF(J157=0,0,1)+IF(J176=0,0,1)+IF(J195=0,0,1)) -> 659.638 | L196: 77
